[Event "ACP-Knockout-2020-Women"]
[Site "Emanuel Lasker Arena"]
[Date "2020.07.26"]
[Round "2.1"]
[White "IGaponenko"]
[Black "Natik"]
[Result "1-0"]
[WhiteElo "1430"]
[BlackElo "1620"]
[Annotator "NA RC"]
[PlyCount "65"]
[EventDate "2020.07.25"]
[EventType "k.o. (blitz)"]
[EventRounds "4"]
[TimeControl "600+5"]

1. e4 {[%emt 0:00:03]} e5 {[%emt 0:00:06]} 2. Nf3 {[%emt 0:00:02]} d6 {[%emt 0:00:02]} 3. d4 {[%emt 0:00:03]} exd4 {[%emt 0:00:02]} 4. Nxd4 {[%emt 0:00:02]} Nf6 {[%emt 0:00:01]} 5. Nc3 {[%emt 0:00:02]} Be7 {[%emt 0:00:01]} 6. g3 {[%emt 0:00:27]} O-O {[%emt 0:00:02]} 7. Bg2 {[%emt 0:00:02]} Re8 {[%emt 0:00:07]} 8. O-O {[%emt 0:00:02]} c6 {[%emt 0:00:36]} 9. h3 {[%emt 0:01:41]} a5 {[%emt 0:00:17]} 10. g4 {[%emt 0:02:13]} h6 {[%emt 0:00:16]} 11. f4 {[%emt 0:01:16]} Na6 {[%emt 0:01:31]} 12. Be3 {[%emt 0:03:38]} Nc5 {[%emt 0:01:19]} 13. g5 {[%emt 0:00:39]} hxg5 {[%emt 0:01:03]} 14. fxg5 {[%emt 0:00:02]} Nfd7 {[%emt 0:00:18]} 15. Nf5 {[%emt 0:00:12]} Bxg5 {[%emt 0:01:56]} 16. Bxg5 {[%emt 0:00:03]} Qxg5 {[%emt 0:00:01]} 17. Qxd6 {[%emt 0:00:27]} Re6 {[%emt 0:00:55]} 18. Qd4 {[%emt 0:00:08]} Rg6 {[%emt 0:02:24]} 19. Rf2 {[%emt 0:00:02]} Ne6 {[%emt 0:00:19]} 20. Qd2 {[%emt 0:00:02]} Qxd2 {[%emt 0:00:04]} 21. Rxd2 {[%emt 0:00:02]} Kf8 {[%emt 0:00:11]} 22. Rf1 {[%emt 0:00:26]} Ne5 {[%emt 0:00:07]} 23. Nd6 {[%emt 0:00:06]} Bd7 {[%emt 0:00:04]} 24. Nxf7 {[%emt 0:00:05]} Nxf7 {[%emt 0:00:09]} 25. Rxd7 {[%emt 0:00:02]} Ned8 {[%emt 0:00:05]} 26. e5 {[%emt 0:00:10]} Kg8 {[%emt 0:00:06]} 27. Re7 {[%emt 0:00:13]} Re6 {[%emt 0:00:03]} 28. Rfxf7 {[%emt 0:00:06]} Nxf7 {[%emt 0:00:03]} 29. Rxe6 {[%emt 0:00:01]} Rd8 {[%emt 0:00:00]} 30. Kf2 {[%emt 0:00:03]} Rd2+ {[%emt 0:00:01]} 31. Kg3 {[%emt 0:00:01]} Rxc2 {[%emt 0:00:01]} 32. Re8+ {[%emt 0:00:01]} Kh7 {[%emt 0:00:04]} 33. Be4+ {[%emt 0:00:02] Natik resigns (Lag: Av=0.54s, max=0.9s)} 1-0

[Event "ACP-Knockout-2020-Women"]
[Site "Emanuel Lasker Arena"]
[Date "2020.07.26"]
[Round "2.3"]
[White "IGaponenko"]
[Black "Natik"]
[Result "1-0"]
[WhiteElo "1486"]
[BlackElo "1620"]
[Annotator "NA RC"]
[PlyCount "71"]
[EventDate "2020.07.25"]
[EventType "k.o. (blitz)"]
[EventRounds "4"]
[TimeControl "600+5"]

1. e4 {[%emt 0:00:47]} e5 {[%emt 0:00:28]} 2. Nf3 {[%emt 0:00:03]} d6 {[%emt 0:00:02]} 3. d4 {[%emt 0:00:02]} exd4 {[%emt 0:00:01]} 4. Nxd4 {[%emt 0:00:01]} Nf6 {[%emt 0:00:00]} 5. Nc3 {[%emt 0:00:01]} Be7 {[%emt 0:00:01]} 6. Nde2 {[%emt 0:00:33]} O-O {[%emt 0:00:11]} 7. g3 {[%emt 0:00:02]} Re8 {[%emt 0:00:05]} 8. Bg2 {[%emt 0:00:02]} c6 {[%emt 0:00:27]} 9. O-O {[%emt 0:00:04]} Nbd7 {[%emt 0:00:00]} 10. h3 {[%emt 0:00:11]} Bf8 {[%emt 0:00:57]} 11. g4 {[%emt 0:00:04]} Nc5 {[%emt 0:00:20]} 12. Ng3 {[%emt 0:00:03]} h6 {[%emt 0:01:56]} 13. f4 {[%emt 0:01:09]} Qb6 {[%emt 0:02:35]} 14. Kh2 {[%emt 0:01:04]} Be6 {[%emt 0:00:16]} 15. b3 {[%emt 0:02:26]} Rad8 {[%emt 0:00:03]} 16. Qf3 {[%emt 0:01:05]} Qc7 {[%emt 0:01:29]} 17. Bb2 {[%emt 0:00:19]} d5 {[%emt 0:02:02]} 18. e5 {[%emt 0:00:03]} Nfe4 {[%emt 0:00:01]} 19. Ncxe4 {[%emt 0:00:21]} Nxe4 {[%emt 0:00:04]} 20. Nxe4 {[%emt 0:00:06]} dxe4 {[%emt 0:00:00]} 21. Qe3 {[%emt 0:00:20]} Qa5 {[%emt 0:00:34]} 22. f5 {[%emt 0:01:43]} Bc8 {[%emt 0:00:03]} 23. a3 {[%emt 0:00:10]} Qd2 {[%emt 0:00:04]} 24. Qxe4 {[%emt 0:00:19]} Bc5 {[%emt 0:00:18]} 25. Rae1 {[%emt 0:00:27]} Bb6 {[%emt 0:00:08]} 26. Re2 {[%emt 0:00:03]} Qd7 {[%emt 0:00:04]} 27. Qf4 {[%emt 0:00:19]} Bc7 {[%emt 0:00:02]} 28. f6 {[%emt 0:00:03]} Qe6 {[%emt 0:00:03]} 29. fxg7 {[%emt 0:00:04]} Kxg7 {[%emt 0:00:01]} 30. Kh1 {[%emt 0:00:11]} Qe7 {[%emt 0:00:08]} 31. Bc1 {[%emt 0:00:10]} Qh4 {[%emt 0:00:03]} 32. Qxf7+ {[%emt 0:00:04]} Kh8 {[%emt 0:00:02]} 33. Qxc7 {[%emt 0:00:07]} Bxg4 {[%emt 0:00:01]} 34. Re4 {[%emt 0:00:07]} Rf8 {[%emt 0:00:18]} 35. Rxg4 {[%emt 0:00:04]} Rxf1+ {[%emt 0:00:09]} 36. Bxf1 {[%emt 0:00:02] Natik resigns (Lag: Av=0.52s, max=0.7s)} 1-0